fUST/lending_fUST_20250905
["ID","MTS","AMOUNT","RATE_DAILY","PERIOD"]
[383612937,1757035844264,-151.0,0.00020016,2]
[383612938,1757035844274,-151.0,0.00020016,2]
[383612939,1757035844283,-151.0,0.00020016,2]
[383612940,1757035844292,-151.0,0.00020016,2]
[383612941,1757035844304,-151.0,0.00020016,2]
[383612942,1757035844314,-151.0,0.00020016,2]
[383612943,1757035844324,-244.95719642,0.00020016,2]
[383612944,1757035844333,-151.12856381,0.00020016,2]
[383612945,1757035844343,-1398.84119948,0.00020016,2]
[383612946,1757035844373,-865.25967216,0.00020016,2]
[383612947,1757035844383,-258.88595667,0.00020016,2]
[383612948,1757035844392,-151.02718701,0.00020016,2]
[383612949,1757035844402,-2347.87260389,0.00020071,2]
[383612950,1757035844412,-2434.74389024,0.00020126,2]
[383612951,1757035844422,-2524.82941417,0.00020181,2]
[383612952,1757035844431,-502.93839,0.00020187,2]
[383612953,1757035844441,-1001.86,0.00020234,2]
[383612954,1757035844450,-2618.2481025,0.00020236,2]
[383612955,1757035844460,-911.49,0.00020237,2]
[383612956,1757035844469,-9130.73,0.00020238,2]
[383612957,1757035844481,-2715.12328229,0.00020291,2]
[383612958,1757035844491,-2317.07491601,0.00020346,2]
[383612959,1757035844501,-1001.86,0.00020508,2]
[383612960,1757035844510,-911.49,0.00020511,2]
[383612961,1757035844519,-9130.73,0.00020512,2]
[383612962,1757035844529,-1001.86,0.00020782,2]
[383612963,1757035844538,-911.49,0.00020785,2]
[383612964,1757035844547,-1134.50101985,0.00020786,2]
[383612965,1757035844559,-7996.22898015,0.00020786,2]
[383612966,1757035844569,-1001.86,0.00021056,2]
[383612967,1757035844578,-911.49,0.00021059,2]
[383612968,1757035844588,-9130.73,0.0002106,2]
[383612969,1757035844598,-1000.0,0.00021099,20]
[383612970,1757035844607,-159.4,0.000211,10]
[383612971,1757035844618,-159.4,0.000211,10]
[383612972,1757035844628,-159.4,0.000211,7]
[383612973,1757035844638,-159.4,0.000211,7]
[383612974,1757035844647,-7284.35684004,0.00021185,2]
[383612975,1757035844658,-1001.94,0.0002133,2]
[383612976,1757035844667,-911.58,0.00021333,2]
[383612977,1757035844677,-9130.80866696,0.00021334,2]
[383612978,1757035844686,-187.78006525,0.00021385,2]
[383612979,1757035844696,-1152.0,0.00021542,2]
[383612980,1757035844708,-680.23079,0.00021918,2]
[383612981,1757035844718,-2289.51378912,0.00021987,2]
[383612982,1757035844729,-32102.23464155,0.00022,7]
[383612983,1757035844742,-1218.21925989,0.00022,7]
[383612984,1757035844953,-11292.39954258,0.00022,7]
[383612985,1757035878031,1000.0,0.00029319,60]
[383612986,1757035884621,864.0,0.00018546,20]
[383612987,1757035886395,1000.0,0.00029319,60]
[383612988,1757035897627,1000.0,0.00027397,120]
[383612989,1757035915077,1005.11380203,0.00027397,120]
[383612992,1757036198170,521.707177,0.00013699,2]
[383612994,1757036324577,855.6,0.00012329,2]
[383612998,1757036734100,-333.40767059,0.00014823,2]
[383612999,1757036756291,170.1539439,0.0001392,2]
[383613001,1757036849117,-261.36324249,0.00014823,2]
[383613002,1757036849143,-309.95393597,0.00014825,2]
[383613003,1757036851085,-556.87652644,0.00014825,2]
[383613004,1757036851108,-523.77461398,0.00014829,2]
[383613053,1757037032377,-606.97812405,0.00014829,2]
[383613055,1757037032387,-1200.0,0.00014914,2]
[383613057,1757037032397,-300.0,0.00014915,2]
[383613058,1757037032407,-115.7840462,0.00014915,2]
[383613061,1757037032429,-600.3621039,0.00014915,2]
[383613198,1757037038471,-358.7200018,0.00014915,2]
[383613199,1757037038483,-1197.9939769,0.00014915,2]
[383613205,1757037040508,-8294.8226483,0.00014915,2]
[383613206,1757037040518,-1200.0,0.00014917,2]
[383613207,1757037040527,-866.83046241,0.00014919,2]
[383613208,1757037040537,-300.0,0.0001492,2]
[383613209,1757037040547,-300.0,0.0001492,2]
[383613210,1757037040556,-483.24965491,0.0001492,2]
[383613211,1757037040566,-480.0,0.0001492,2]
[383613212,1757037040575,-500.0,0.0001492,2]
[383613213,1757037040585,-500.0,0.0001492,2]
[383613214,1757037040595,-500.0,0.0001492,2]
[383613215,1757037040604,-500.0,0.0001492,2]
[383613216,1757037040614,-500.0,0.0001492,2]
[383613217,1757037040623,-500.0,0.0001492,2]
[383613218,1757037040632,-500.0,0.0001492,2]
[383613219,1757037040641,-500.0,0.0001492,2]
[383613220,1757037040651,-500.0,0.0001492,2]
[383613221,1757037040660,-500.0,0.0001492,2]
[383613222,1757037040669,-463.3843401,0.0001492,2]
[383613223,1757037040679,-500.0,0.0001492,2]
[383613224,1757037040688,-448.31353187,0.0001492,2]
[383613225,1757037040697,-500.0,0.0001492,2]
[383613227,1757037040707,-500.0,0.0001492,2]
[383613228,1757037040716,-500.0,0.0001492,2]
[383613229,1757037040725,-500.0,0.0001492,2]
[383613230,1757037040735,-500.0,0.0001492,2]
[383613231,1757037040744,-500.0,0.0001492,2]
[383613232,1757037040754,-500.0,0.0001492,2]
[383613233,1757037040764,-502.26247626,0.0001492,2]
[383613234,1757037040773,-247.15707014,0.0001492,2]
[383613235,1757037040782,-644.84640445,0.0001492,2]
[383613236,1757037040792,-500.0,0.0001492,2]
[383613237,1757037040801,-500.0,0.0001492,2]
[383613238,1757037040810,-500.0,0.0001492,2]
[383613239,1757037040820,-500.0,0.0001492,2]
[383613240,1757037040829,-500.0,0.0001492,2]
[383613241,1757037040839,-500.0,0.0001492,2]
[383613242,1757037040849,-500.0,0.0001492,2]
[383613243,1757037040859,-500.0,0.0001492,2]
[383613244,1757037040868,-500.0,0.0001492,2]
[383613245,1757037040878,-500.0,0.0001492,2]
[383613246,1757037040887,-500.0,0.0001492,2]
[383613247,1757037040897,-500.0,0.0001492,2]
[383613248,1757037040906,-500.0,0.0001492,2]
[383613249,1757037040916,-500.0,0.0001492,2]
[383613250,1757037040925,-500.0,0.0001492,2]
[383613251,1757037040934,-419.48386186,0.0001492,2]
[383613252,1757037040944,-500.0,0.0001492,2]
[383613253,1757037040953,-500.0,0.0001492,2]
[383613254,1757037040962,-500.0,0.0001492,2]
[383613255,1757037040971,-500.0,0.0001492,2]
[383613256,1757037040980,-500.0,0.0001492,2]
[383613257,1757037040990,-500.0,0.0001492,2]
[383613258,1757037041004,-500.0,0.0001492,2]
[383613259,1757037041018,-500.0,0.0001492,2]
[383613260,1757037041029,-500.0,0.0001492,2]
[383613261,1757037041039,-500.0,0.0001492,2]
[383613262,1757037041049,-500.0,0.0001492,2]
[383613263,1757037041058,-500.0,0.0001492,2]
[383613264,1757037041067,-500.0,0.0001492,2]
[383613265,1757037041077,-500.0,0.0001492,2]
[383613266,1757037041086,-628.04168278,0.0001492,2]
[383613267,1757037041098,-325.24704199,0.0001492,2]
[383613268,1757037041108,-500.0,0.0001492,2]
[383613269,1757037041118,-500.0,0.0001492,2]
[383613270,1757037041127,-500.0,0.0001492,2]
[383613271,1757037041136,-500.0,0.0001492,2]
[383613272,1757037041146,-500.0,0.0001492,2]
[383613273,1757037041155,-500.0,0.0001492,2]
[383613274,1757037041164,-500.0,0.0001492,2]
[383613275,1757037041173,-500.0,0.0001492,2]
[383613276,1757037041183,-500.0,0.0001492,2]
[383613277,1757037041193,-305.84736313,0.0001492,2]
[383613278,1757037041203,-500.0,0.0001492,2]
[383613279,1757037041212,-500.0,0.0001492,2]
[383613280,1757037041221,-500.0,0.0001492,2]
[383613281,1757037041230,-500.0,0.0001492,2]
[383613282,1757037041240,-500.0,0.0001492,2]
[383613283,1757037041249,-18628.22730299,0.00014921,2]
[383613294,1757037043452,-31371.77269701,0.00014921,2]
[383613295,1757037043462,-483.2452423,0.00014922,2]
[383613296,1757037043472,-482.25023616,0.00014922,2]
[383613298,1757037043483,-483.69399649,0.00014922,2]
[383613299,1757037043492,-480.0,0.00014922,2]
[383613300,1757037043501,-480.0,0.00014922,2]
[383613301,1757037043511,-480.0,0.00014922,2]
[383613302,1757037043519,-481.24120666,0.00014922,2]
[383613303,1757037043528,-480.0,0.00014922,2]
[383613304,1757037043538,-480.0,0.00014922,2]
[383613305,1757037043548,-480.0,0.00014922,2]
[383613306,1757037043559,-480.0,0.00014922,2]
[383613307,1757037043570,-946.29,0.00014922,2]
[383613308,1757037043579,-480.0,0.00014922,2]
[383613309,1757037043588,-480.0,0.00014922,2]
[383613310,1757037043598,-480.0,0.00014922,2]
[383613311,1757037043607,-483.58284842,0.00014922,2]
[383613312,1757037043616,-480.0,0.00014922,2]
[383613315,1757037043626,-480.0,0.00014922,2]
[383613317,1757037043635,-480.0,0.00014922,2]
[383613318,1757037043644,-480.0,0.00014922,2]
[383613319,1757037043653,-480.0,0.00014922,2]
[383613320,1757037043662,-480.0,0.00014922,2]
[383613321,1757037043671,-480.0,0.00014922,2]
[383613322,1757037043681,-480.0,0.00014922,2]
[383613323,1757037043690,-480.0,0.00014922,2]
[383613324,1757037043700,-480.0,0.00014922,2]
[383613325,1757037043709,-480.0,0.00014922,2]
[383613326,1757037043718,-480.0,0.00014923,2]
[383613327,1757037043727,-480.0,0.00014923,2]
[383613328,1757037043737,-533.27541289,0.00014923,2]
[383613329,1757037043746,-480.0,0.00014923,2]
[383613330,1757037043755,-480.0,0.00014923,2]
[383613331,1757037043764,-480.0,0.00014923,2]
[383613332,1757037043773,-480.0,0.00014923,2]
[383613333,1757037043782,-480.0,0.00014923,2]
[383613334,1757037043791,-252.93314004,0.00014923,2]
[383613335,1757037043801,-480.0,0.00014923,2]
[383613336,1757037043810,-480.0,0.00014923,2]
[383613337,1757037043819,-480.0,0.00014923,2]
[383613338,1757037043828,-481.88184433,0.00014923,2]
[383613339,1757037043837,-481.56943196,0.00014923,2]
[383613340,1757037043846,-482.08066853,0.00014923,2]
[383613341,1757037043856,-480.0,0.00014923,2]
[383613342,1757037043865,-480.0,0.00014923,2]
[383613343,1757037043875,-480.0,0.00014923,2]
[383613344,1757037043884,-480.0,0.00014923,2]
[383613345,1757037043894,-480.0,0.00014923,2]
[383613346,1757037044020,-481.94002081,0.00014923,2]
[383613347,1757037044029,-480.0,0.00014923,2]
[383613348,1757037044040,-480.0,0.00014923,2]
[383613349,1757037044049,-480.0,0.00014923,2]
[383613350,1757037044059,-480.0,0.00014923,2]
[383613351,1757037044068,-480.0,0.00014923,2]
[383613352,1757037044078,-381.02914403,0.00014923,2]
[383613353,1757037044087,-480.0,0.00014923,2]
[383613354,1757037044097,-496.77507317,0.00014923,2]
[383613355,1757037044106,-482.56618289,0.00014923,2]
[383613356,1757037044115,-480.0,0.00014923,2]
[383613357,1757037044125,-480.0,0.00014923,2]
[383613358,1757037044134,-480.0,0.00014923,2]
[383613359,1757037044143,-480.82226452,0.00014923,2]
[383613360,1757037044152,-484.61610187,0.00014923,2]
[383613361,1757037044162,-480.99216109,0.00014923,2]
[383613362,1757037044171,-481.98189021,0.00014923,2]
[383613363,1757037044181,-482.37253661,0.00014923,2]
[383613364,1757037044191,-480.0,0.00014923,2]
[383613365,1757037044200,-480.0,0.00014923,2]
[383613366,1757037044209,-480.0,0.00014923,2]
[383613367,1757037044219,-481.42709666,0.00014923,2]
[383613368,1757037044228,-480.85570222,0.00014923,2]
[383613369,1757037044237,-481.99013314,0.00014923,2]
[383613370,1757037044247,-480.0,0.00014923,2]
[383613371,1757037044256,-480.0,0.00014923,2]
[383613372,1757037044265,-480.0,0.00014923,2]
[383613373,1757037044274,-480.0,0.00014923,2]
[383613374,1757037044285,-480.0,0.00014923,2]
[383613375,1757037044296,-480.0,0.00014923,2]
[383613376,1757037044306,-480.0,0.00014923,2]
[383613377,1757037044316,-480.99372086,0.00014923,2]
[383613378,1757037044325,-482.30714829,0.00014923,2]
[383613379,1757037044335,-480.0,0.00014923,2]
[383613380,1757037044344,-480.0,0.00014923,2]
[383613381,1757037044353,-480.0,0.00014923,2]
[383613382,1757037044363,-805.86,0.00014923,2]
[383613383,1757037044372,-480.0,0.00014923,2]
[383613384,1757037044382,-480.0,0.00014923,2]
[383613385,1757037044392,-480.0,0.00014923,2]
[383613386,1757037044401,-480.0,0.00014923,2]
[383613387,1757037044411,-238.33494087,0.00014923,2]
[383613388,1757037044420,-481.53235701,0.00014923,2]
[383613389,1757037044429,-482.1689427,0.00014923,2]
[383613390,1757037044438,-480.0,0.00014923,2]
[383613391,1757037044448,-480.0,0.00014923,2]
[383613392,1757037044457,-480.96951591,0.00014923,2]
[383613393,1757037044467,-482.56512883,0.00014923,2]
[383613394,1757037044476,-480.0,0.00014923,2]
[383613395,1757037044486,-481.19890722,0.00014923,2]
[383613396,1757037044495,-480.0,0.00014923,2]
[383613397,1757037044505,-480.0,0.00014923,2]
[383613398,1757037044515,-480.0,0.00014923,2]
[383613399,1757037044525,-230.12370863,0.00014923,2]
[383613400,1757037044534,-480.0,0.00014923,2]
[383613401,1757037044543,-456.7042247,0.00014923,2]
[383613402,1757037044552,-480.0,0.00014923,2]
[383613403,1757037044562,-480.0,0.00014923,2]
[383613404,1757037044571,-481.46935647,0.00014923,2]
[383613405,1757037044582,-481.04246294,0.00014923,2]
[383613406,1757037044593,-480.0,0.00014923,2]
[383613407,1757037044602,-481.42664936,0.00014923,2]
[383613408,1757037044612,-481.59707255,0.00014923,2]
[383613409,1757037044623,-480.0,0.00014923,2]
[383613410,1757037044635,-480.0,0.00014923,2]
[383613411,1757037044645,-480.0,0.00014923,2]
[383613412,1757037044654,-475.43512815,0.00014923,2]
[383613413,1757037044664,-481.96888556,0.00014923,2]
[383613414,1757037044673,-482.52844581,0.00014923,2]
[383613415,1757037044683,-480.0,0.00014923,2]
[383613416,1757037044693,-483.69800926,0.00014923,2]
[383613417,1757037044703,-480.0,0.00014923,2]
[383613418,1757037044713,-480.0,0.00014923,2]
[383613419,1757037044722,-480.0,0.00014923,2]
[383613420,1757037044731,-480.0,0.00014923,2]
[383613421,1757037044741,-480.0,0.00014923,2]
[383613422,1757037044751,-480.0,0.00014923,2]
[383613423,1757037044760,-480.0,0.00014923,2]
[383613424,1757037044769,-480.0,0.00014923,2]
[383613425,1757037044779,-480.0,0.00014923,2]
[383613426,1757037044788,-480.0,0.00014923,2]
[383613427,1757037044797,-480.0,0.00014923,2]
[383613428,1757037044807,-480.0,0.00014923,2]
[383613429,1757037044817,-285.07827581,0.00014923,2]
[383613430,1757037044826,-628.93239218,0.00014923,2]
[383613431,1757037044836,-484.42407435,0.00014923,2]
[383613432,1757037044845,-480.0,0.00014923,2]
[383613433,1757037044856,-480.0,0.00014923,2]
[383613434,1757037044865,-480.0,0.00014923,2]
[383613435,1757037044875,-482.71308201,0.00014923,2]
[383613436,1757037044884,-480.0,0.00014923,2]
[383613437,1757037044893,-480.0,0.00014923,2]
[383613438,1757037044903,-480.0,0.00014923,2]
[383613439,1757037044913,-480.0,0.00014923,2]
[383613440,1757037044923,-480.0,0.00014923,2]
[383613441,1757037044933,-939.41,0.00014923,2]
[383613442,1757037044943,-480.0,0.00014923,2]
[383613443,1757037044953,-480.0,0.00014923,2]
[383613444,1757037044962,-480.0,0.00014923,2]
[383613445,1757037044972,-329.91768257,0.00014923,2]
[383613446,1757037044981,-480.0,0.00014923,2]
[383613447,1757037044992,-480.0,0.00014923,2]
[383613448,1757037045005,-480.0,0.00014923,2]
[383613449,1757037045014,-480.0,0.00014925,2]
[383613450,1757037045023,-480.0,0.00014925,2]
[383613451,1757037045032,-480.0,0.00014925,2]
[383613452,1757037045042,-482.17644475,0.00014925,2]
[383613453,1757037045052,-480.0,0.00014925,2]
[383613454,1757037045061,-55.60497151,0.00014925,2]
[383613455,1757037045076,-424.39502849,0.00014925,2]
[383613456,1757037045086,-480.0,0.00014925,2]
[383613457,1757037045095,-485.79898638,0.00014925,2]
[383613458,1757037045104,-484.4924921,0.00014925,2]
[383613459,1757037045114,-485.76809627,0.00014925,2]
[383613460,1757037045123,-480.0,0.00014925,2]
[383613461,1757037045132,-156.5428653,0.00014925,2]
[383613462,1757037045142,-480.0,0.00014925,2]
[383613463,1757037045151,-480.0,0.00014925,2]
[383613464,1757037045160,-480.0,0.00014925,2]
[383613465,1757037045169,-483.2667335,0.00014925,2]
[383613466,1757037045179,-480.0,0.00014925,2]
[383613467,1757037045188,-480.0,0.00014925,2]
[383613468,1757037045198,-480.0,0.00014925,2]
[383613469,1757037045207,-480.0,0.00014925,2]
[383613470,1757037045217,-480.0,0.00014925,2]
[383613471,1757037045226,-480.0,0.00014925,2]
[383613472,1757037045235,-480.0,0.00014925,2]
[383613473,1757037045245,-480.0,0.00014925,2]
[383613474,1757037045254,-480.0,0.00014925,2]
[383613475,1757037045263,-480.0,0.00014925,2]
[383613476,1757037045272,-480.0,0.00014925,2]
[383613477,1757037045281,-480.0,0.00014925,2]
[383613478,1757037045291,-480.0,0.00014925,2]
[383613479,1757037045301,-480.0,0.00014925,2]
[383613480,1757037045310,-480.0,0.00014925,2]
[383613481,1757037045320,-480.0,0.00014925,2]
[383613482,1757037045331,-480.0,0.00014925,2]
[383613483,1757037045341,-480.0,0.00014925,2]
[383613484,1757037045350,-480.0,0.00014925,2]
[383613485,1757037045359,-152.19309505,0.00014925,2]
[383613486,1757037045376,-331.26383612,0.00014925,2]
[383613487,1757037045385,-462.38000139,0.00014925,2]
[383613488,1757037045396,-17.61999861,0.00014925,2]
[383613489,1757037045406,-480.0,0.00014925,2]
[383613490,1757037045415,-483.20694227,0.00014925,2]
[383613491,1757037045424,-480.0,0.00014925,2]
[383613492,1757037045436,-480.0,0.00014925,2]
[383613493,1757037045445,-481.95983296,0.00014925,2]
[383613494,1757037045455,-480.0,0.00014925,2]
[383613495,1757037045464,-480.0,0.00014925,2]
[383613496,1757037045474,-480.0,0.00014925,2]
[383613497,1757037045483,-480.0,0.00014925,2]
[383613498,1757037045492,-480.0,0.00014925,2]
[383613499,1757037045502,-491.10400277,0.00014925,2]
[383613500,1757037045511,-483.11978562,0.00014925,2]
[383613501,1757037045521,-480.0,0.00014925,2]
[383613502,1757037045531,-483.83069025,0.00014925,2]
[383613503,1757037045540,-480.0,0.00014925,2]
[383613504,1757037045550,-483.05688749,0.00014925,2]
[383613505,1757037045559,-480.0,0.00014925,2]
[383613506,1757037045568,-480.0,0.00014925,2]
[383613507,1757037045578,-480.0,0.00014925,2]
[383613508,1757037045587,-480.0,0.00014925,2]
[383613509,1757037045596,-480.0,0.00014925,2]
[383613510,1757037045606,-370.32275822,0.00014925,2]
[383613511,1757037045615,-480.0,0.00014925,2]
[383613512,1757037045625,-480.0,0.00014925,2]
[383613513,1757037045635,-480.0,0.00014925,2]
[383613514,1757037045649,-396.16371217,0.00014925,2]
[383613515,1757037045658,-483.5607326,0.00014925,2]
[383613516,1757037045668,-480.0,0.00014925,2]
[383613517,1757037045680,-480.0,0.00014925,2]
[383613518,1757037045689,-480.0,0.00014925,2]
[383613519,1757037045698,-480.0,0.00014925,2]
[383613520,1757037045707,-480.0,0.00014925,2]
[383613521,1757037045716,-480.0,0.00014925,2]
[383613522,1757037045726,-480.0,0.00014925,2]
[383613523,1757037045735,-490.79763511,0.00014925,2]
[383613524,1757037045745,-480.0,0.00014925,2]
[383613525,1757037045754,-480.0,0.00014925,2]
[383613526,1757037045763,-480.0,0.00014925,2]
[383613528,1757037045772,-7861.3,0.00014925,2]
[383613529,1757037045782,-480.0,0.00014925,2]
[383613530,1757037045792,-482.71344877,0.00014925,2]
[383613531,1757037045801,-480.0,0.00014925,2]
[383613532,1757037045812,-490.20837927,0.00014925,2]
[383613533,1757037045821,-481.52726267,0.00014925,2]
[383613534,1757037045831,-894.58,0.00014925,2]
[383613535,1757037045840,-480.0,0.00014925,2]
[383613536,1757037045850,-480.0,0.00014925,2]
[383613537,1757037045859,-480.0,0.00014925,2]
[383613538,1757037045868,-480.0,0.00014925,2]
[383613539,1757037045878,-480.0,0.00014925,2]
[383613540,1757037045887,-480.0,0.00014925,2]
[383613541,1757037045896,-480.0,0.00014925,2]
[383613542,1757037045906,-480.0,0.00014925,2]
[383613543,1757037045915,-480.0,0.00014925,2]
[383613544,1757037045925,-480.0,0.00014925,2]
[383613545,1757037045936,-484.78447153,0.00014925,2]
[383613546,1757037045945,-480.0,0.00014925,2]
[383613547,1757037045955,-485.5960821,0.00014925,2]
[383613548,1757037045964,-617.3714351,0.00014925,2]
[383613549,1757037045973,-480.0,0.00014925,2]
[383613550,1757037045982,-480.0,0.00014925,2]
[383613551,1757037045992,-483.09406718,0.00014925,2]
[383613552,1757037046006,-480.47869343,0.00014925,2]
[383613553,1757037046015,-480.0,0.00014925,2]
[383613554,1757037046024,-480.0,0.00014925,2]
[383613555,1757037046033,-595.82999017,0.00014927,2]
[383613556,1757037046043,-158.74457,0.00014929,2]
[383613557,1757037046052,-151.0,0.00014929,2]
[383613558,1757037046061,-151.0,0.00014929,2]
[383613560,1757037046071,-151.0,0.00014929,2]
[383613561,1757037046082,-131903.31295229,0.00014929,2]
[383613562,1757037046091,-500.0,0.00014929,2]
[383613563,1757037046101,-501.65929407,0.00014973,2]
[383613564,1757037046110,-348.83958035,0.00014973,2]
[383613565,1757037046120,-500.0,0.00014973,2]
[383613566,1757037046130,-160.0,0.00015,2]
[383613568,1757037046139,-866.83046241,0.00015014,2]
[383613570,1757037046149,-482.17013997,0.00015028,2]
[383613571,1757037046158,-480.0,0.00015028,2]
[383613573,1757037046168,-480.0,0.00015028,2]
[383613574,1757037046177,-480.0,0.00015028,2]
[383613575,1757037046189,-480.0,0.00015028,2]
[383613576,1757037046199,-480.0,0.00015028,2]
[383613577,1757037046208,-480.0,0.00015028,2]
[383613578,1757037046218,-480.0,0.00015028,2]
[383613579,1757037046228,-480.0,0.00015028,2]
[383613580,1757037046238,-480.0,0.00015028,2]
[383613581,1757037046248,-486.72806497,0.00015028,2]
[383613582,1757037046257,-480.0,0.00015028,2]
[383613583,1757037046267,-482.0048652,0.00015028,2]
[383613584,1757037046277,-564.9240212,0.00015028,2]
[383613585,1757037046287,-480.0,0.00015028,2]
[383613586,1757037046298,-480.0,0.00015028,2]
[383613587,1757037046308,-521.55214238,0.00015028,2]
[383613588,1757037046318,-480.0,0.00015028,2]
[383613589,1757037046328,-482.6629996,0.00015028,2]
[383613590,1757037046338,-480.0,0.00015028,2]
[383613591,1757037046347,-480.63526474,0.00015028,2]
[383613592,1757037046357,-484.57790768,0.00015028,2]
[383613593,1757037046367,-483.66670046,0.00015028,2]
[383613594,1757037046377,-345.26192082,0.00015028,2]
[383613595,1757037046387,-480.0,0.00015028,2]
[383613596,1757037046399,-480.0,0.00015028,2]
[383613597,1757037046409,-480.0,0.00015028,2]
[383613598,1757037046420,-483.55124936,0.00015028,2]
[383613599,1757037046430,-484.25954981,0.00015028,2]
[383613600,1757037046439,-480.0,0.00015028,2]
[383613601,1757037046450,-480.0,0.00015028,2]
[383613602,1757037046460,-285.11781735,0.00015028,2]
[383613603,1757037046470,-480.0,0.00015028,2]
[383613604,1757037046480,-480.0,0.00015028,2]
[383613605,1757037046490,-302.05308291,0.00015028,2]
[383613606,1757037046500,-480.0,0.00015028,2]
[383613607,1757037046511,-480.0,0.00015028,2]
[383613608,1757037046520,-484.41076293,0.00015028,2]
[383613609,1757037046530,-485.18272125,0.00015028,2]
[383613610,1757037046541,-484.72766071,0.00015028,2]
[383613611,1757037046550,-482.72535945,0.00015028,2]
[383613612,1757037046559,-482.61811874,0.00015028,2]
[383613613,1757037046569,-500.0,0.00015028,2]
[383613614,1757037046578,-500.0,0.00015028,2]
[383613615,1757037046587,-484.45726172,0.00015028,2]
[383613616,1757037046596,-500.0,0.00015028,2]
[383613617,1757037046605,-500.0,0.00015028,2]
[383613618,1757037046615,-482.92223669,0.00015028,2]
[383613619,1757037046624,-482.38837747,0.00015028,2]
[383613620,1757037046633,-484.0015415,0.00015028,2]
[383613621,1757037046642,-484.91149933,0.00015028,2]
[383613622,1757037046651,-484.41688334,0.00015028,2]
[383613623,1757037046660,-480.0,0.00015028,2]
[383613624,1757037046669,-593.0370348,0.00015028,2]
[383613627,1757037046785,-480.0,0.00015028,2]
[383613629,1757037046795,-480.0,0.00015028,2]
[383613631,1757037046805,-482.32812961,0.00015028,2]
[383613634,1757037046814,-480.0,0.00015028,2]
[383613635,1757037046824,-152.867192,0.00015028,2]
[383613637,1757037046833,-312.82659352,0.00015028,2]
[383613639,1757037046843,-482.54965626,0.00015028,2]
[383613641,1757037046852,-480.0,0.00015028,2]
[383613643,1757037046861,-482.34849631,0.00015028,2]
[383613644,1757037046870,-480.0,0.00015028,2]
[383613645,1757037046879,-480.0,0.00015028,2]
[383613646,1757037046888,-481.69105308,0.00015028,2]
[383613647,1757037046897,-483.37523252,0.00015028,2]
[383613648,1757037046907,-151.0,0.00015028,2]
[383613649,1757037046916,-480.68778036,0.00015028,2]
[383613650,1757037046925,-483.8761419,0.00015028,2]
[383613651,1757037046935,-480.0,0.00015028,2]
[383613652,1757037046944,-483.03880697,0.00015028,2]
[383613653,1757037046953,-483.34860112,0.00015028,2]
[383613654,1757037046963,-480.0,0.00015028,2]
[383613655,1757037046972,-186.66733479,0.00015028,2]
[383613656,1757037046981,-196.76981833,0.00015028,2]
[383613657,1757037046990,-480.0,0.00015028,2]
[383613658,1757037047004,-480.0,0.00015028,2]
[383613659,1757037047013,-480.0,0.00015028,2]
[383613660,1757037047022,-487.02116398,0.00015028,2]
[383613661,1757037047032,-480.0,0.00015028,2]
[383613662,1757037047043,-480.0,0.00015028,2]
[383613663,1757037047053,-480.0,0.00015028,2]
[383613664,1757037047062,-480.0,0.00015028,2]
[383613665,1757037047072,-484.07687901,0.00015028,2]
[383613666,1757037047082,-487.47569599,0.00015028,2]